bitfinex/quotes_SOLUSD_20240620
["timestamp","ask_amount","ask_price","bid_price","bid_amount"]
[1718906385111,7.4118,134.92,134.85,26.4587]
[1718906385326,7.4118,134.92,134.85,26.2887]
[1718906386126,8.23243197,134.94,134.85,26.2887]
[1718906386309,8.23243197,134.94,134.86,0.62451042]
[1718906386310,7.4108,134.94,134.86,0.62451042]
[1718906386506,0.82163197,134.95,134.85,26.2887]
[1718906386818,28.55163197,134.95,134.85,26.1187]
[1718906387127,7.414,134.88,134.84,15.1869]
[1718906387433,7.4136,134.89,134.84,15.1869]
[1718906387608,7.4136,134.89,134.85,2.0012614]
[1718906389130,7.4136,134.89,134.84,15.1869]
[1718906389521,7.4124,134.91,134.85,20.0]
[1718906390111,7.412,134.92,134.85,20.0]
[1718906390430,7.4123,134.91,134.85,20.0]
[1718906390926,7.4123,134.91,134.86,1.44006692]
[1718906391431,7.4123,134.91,134.85,20.0]
[1718906391613,7.4123,134.91,134.86,2.91682449]
[1718906392235,7.4123,134.91,134.87,4.76506544]
[1718906392441,7.412,134.92,134.87,4.76506544]
[1718906392821,7.4124,134.91,134.87,4.76506544]
[1718906393133,7.4124,134.91,134.85,20.0]
[1718906393335,7.4124,134.91,134.86,0.17]
[1718906394126,7.4132,134.9,134.85,20.0]
[1718906394714,7.4135,134.89,134.85,20.0]
[1718906395134,7.4131,134.9,134.85,20.0]
[1718906395320,0.82163197,134.92,134.85,20.0]
[1718906395523,0.82163197,134.94,134.85,20.0]
[1718906395726,7.4135,134.89,134.85,20.0]
[1718906396233,7.4142,134.88,134.85,20.0]
[1718906396434,7.4136,134.89,134.86,1.48051476]
[1718906396636,7.4136,134.89,134.86,2.95990823]
[1718906397919,7.4131,134.9,134.86,2.95990823]
[1718906398124,7.4136,134.89,134.85,20.0]
[1718906399545,7.4137,134.89,134.85,20.0]
[1718906399747,18.5303,134.92,134.86,0.80930674]
[1718906399748,7.413,134.9,134.86,0.80930674]
[1718906400442,7.4137,134.89,134.85,20.0]
[1718906400640,7.4146,134.87,134.85,20.0]
[1718906400830,7.415,134.86,134.85,20.0]
[1718906401035,18.5376,134.87,134.81,16.1036]
[1718906401236,18.5376,134.87,134.82,20.0]
[1718906401436,7.4152,134.86,134.81,16.1036]
[1718906401639,19.35533197,134.89,134.81,16.1036]
[1718906402143,7.4154,134.86,134.81,16.1036]
[1718906402349,7.4162,134.84,134.81,16.1036]
[1718906402737,7.4158,134.85,134.82,0.65126605]
[1718906403045,7.4153,134.86,134.82,20.65126605]
[1718906403347,7.4146,134.87,134.82,20.0]
[1718906403740,7.4146,134.87,134.83,1.93492184]
[1718906403936,7.4146,134.87,134.83,3.41753839]
[1718906404138,0.82163197,134.9,134.83,3.41753839]
[1718906404342,7.414,134.88,134.84,1.90299777]
[1718906404533,0.82163197,134.91,134.84,20.0]
[1718906404735,7.4152,134.86,134.82,20.0]
[1718906405040,7.4153,134.86,134.83,1.48160265]
[1718906405232,0.82163197,134.88,134.83,1.48160265]
[1718906405233,7.4143,134.88,134.83,1.90365613]
[1718906405434,19.35493197,134.9,134.82,20.0]
[1718906405761,7.4153,134.86,134.82,20.0]
[1718906405942,0.82163197,134.89,134.82,20.0]
[1718906406256,37.0577,134.93,134.83,45.0]
[1718906406257,18.531,134.91,134.83,45.0]
[1718906406545,7.4149,134.87,134.84,20.0]
[1718906406854,0.82163197,134.9,134.82,20.0]
[1718906407028,18.5285,134.93,134.83,45.34]
[1718906407229,7.413,134.9,134.85,6.202]
[1718906407550,7.4129,134.9,134.86,65.17]
[1718906408133,7.4126,134.91,134.86,65.17]
[1718906408347,7.4135,134.89,134.86,20.0]
[1718906408549,7.4126,134.91,134.87,1.48069461]
[1718906408934,18.5285,134.93,134.87,1.48069461]
[1718906409149,7.4124,134.91,134.87,1.48069461]
[1718906409350,7.4124,134.91,134.87,45.0]
[1718906409538,7.4129,134.9,134.88,20.0]
[1718906409744,7.4129,134.9,134.86,20.0]
[1718906410054,7.4134,134.89,134.87,16.6591]
[1718906410232,19.35013197,134.93,134.88,20.0]
[1718906410552,7.4125,134.91,134.89,1.48303895]
[1718906410764,27.73,134.96,134.89,45.0]
[1718906410941,7.4093,134.97,134.9,23.53997113]
[1718906411140,7.4086,134.98,134.91,51.5191]
[1718906411464,7.4086,134.98,134.92,38.77085033]
[1718906411651,7.4086,134.98,134.93,48.54091955]
[1718906411832,7.409,134.97,134.94,20.0]
[1718906412544,18.5196,135.0,134.94,20.0]
[1718906412848,7.4093,134.97,134.94,20.0]
[1718906413461,7.409,134.97,134.95,0.38956128]
[1718906413765,7.409,134.97,134.94,20.0]
[1718906414466,7.4093,134.97,134.94,20.0]
[1718906414635,7.4093,134.97,134.93,20.0]
[1718906415653,19.34043197,135.0,134.93,20.0]
[1718906415842,7.4091,134.97,134.93,20.0]
[1718906416837,7.4091,134.97,134.94,45.0]
[1718906417045,7.4096,134.96,134.95,20.0]
[1718906417245,7.4101,134.96,134.93,20.0]
[1718906417983,7.4103,134.95,134.93,20.0]
[1718906418475,0.82163197,134.97,134.88,15.6854]
[1718906418688,7.4099,134.96,134.88,15.6854]
[1718906419056,7.4103,134.95,134.88,15.6854]
[1718906419470,19.34373197,134.98,134.88,15.6854]
[1718906419471,7.4098,134.96,134.88,15.6854]
[1718906419647,0.82163197,135.0,134.89,0.17]
[1718906419849,7.4087,134.98,134.89,42.82]
[1718906420048,7.4091,134.97,134.9,45.0]
[1718906420246,7.4087,134.98,134.91,20.51]
[1718906420475,7.4087,134.98,134.92,45.0]
[1718906420674,7.4081,134.99,134.94,16.4986]
[1718906420877,33.8288,135.01,134.95,45.90932335]
[1718906420878,7.407,135.01,134.95,45.90932335]
[1718906421070,18.5146,135.03,134.96,0.90932541]
[1718906421071,7.4065,135.02,134.96,0.90932541]
[1718906421447,7.4058,135.03,134.97,0.17]
[1718906421677,7.4064,135.02,134.97,0.17]
[1718906422366,7.4059,135.03,134.98,21.956]
[1718906422570,7.4061,135.03,134.99,45.0]
[1718906422769,7.4061,135.03,135.0,20.0]
[1718906423152,7.4063,135.02,135.0,20.0]
[1718906423766,0.82163197,135.05,135.0,20.0]
[1718906423966,7.4059,135.03,134.99,20.0]
[1718906424752,7.4053,135.04,135.0,45.0]
[1718906424974,7.4054,135.04,135.0,45.0]
[1718906425565,7.4059,135.03,135.0,45.0]
[1718906425770,18.5103,135.06,135.0,45.0]
[1718906425978,7.4058,135.03,135.0,45.0]
[1718906426180,7.4058,135.03,134.99,20.0]
[1718906427172,18.5131,135.04,134.99,20.0]
[1718906427354,7.4065,135.02,134.99,20.0]
[1718906427751,18.5131,135.04,134.99,20.0]
[1718906428072,0.82163197,135.06,134.99,20.0]
[1718906428269,7.4055,135.04,134.99,20.0]
[1718906428772,7.4059,135.03,134.99,20.0]
[1718906428976,7.4054,135.04,134.99,20.0]
[1718906429177,7.4054,135.04,135.0,45.0]
[1718906429770,7.4054,135.04,135.01,20.0]
[1718906431991,7.4063,135.02,135.01,20.0]
[1718906432172,7.4049,135.05,135.01,20.0]
[1718906432368,19.33183197,135.07,135.01,20.0]
[1718906432681,18.5102,135.07,135.01,20.0]
[1718906432876,7.4055,135.04,135.01,20.0]
[1718906434677,18.5112,135.06,135.01,20.0]
[1718906434871,7.4057,135.04,134.99,20.0]
[1718906435071,7.4057,135.04,135.0,45.0]
[1718906435471,7.4057,135.04,135.01,20.0]
[1718906435869,7.4048,135.05,135.01,20.0]
[1718906436076,64.7339,135.13,135.02,45.0]
[1718906436276,0.82163197,135.1,135.03,20.0]
[1718906436582,7.4015,135.11,135.04,67.9292]
[1718906436779,7.4025,135.09,135.05,20.0]
[1718906436973,7.4031,135.08,135.05,20.0]
[1718906437284,7.4026,135.09,135.06,45.0]
[1718906437862,7.4031,135.08,135.06,45.0]
[1718906438062,7.4031,135.08,135.05,20.0]
[1718906438264,7.4041,135.06,135.05,20.0]
[1718906438471,7.4041,135.06,135.02,20.0]
[1718906438971,7.4037,135.07,135.02,20.0]
[1718906439485,7.403,135.08,135.02,20.0]
[1718906439664,7.403,135.08,135.03,45.0]
[1718906439872,7.403,135.08,135.04,20.0]
[1718906440074,7.4035,135.07,135.04,20.0]
[1718906440384,7.4043,135.06,135.04,20.0]
[1718906440567,7.4038,135.07,135.02,20.0]
[1718906440974,7.4028,135.09,135.02,20.0]
[1718906441771,7.403,135.08,135.03,45.17]
[1718906442081,7.403,135.08,135.04,20.0]
[1718906442770,7.4038,135.07,135.04,20.0]
[1718906442980,7.4038,135.07,135.02,20.0]
[1718906443308,0.82163197,135.13,135.02,20.0]
[1718906443483,28.55163197,135.13,135.02,20.0]
[1718906443700,7.4027,135.09,135.02,20.0]
[1718906444391,7.4027,135.09,135.03,45.17]
[1718906444688,0.82163197,135.1,135.04,20.0]
[1718906444993,7.4038,135.07,135.04,20.0]
[1718906445496,0.82163197,135.1,135.01,16.6137]
[1718906445497,7.405,135.05,135.01,16.2737]
[1718906445697,7.4052,135.04,135.02,20.0]
[1718906445873,7.4052,135.04,135.01,16.2737]
[1718906446072,7.4064,135.02,134.98,16.1696]
[1718906446271,18.5117,135.05,134.98,16.1696]
[1718906446272,7.4059,135.03,134.98,16.1696]
[1718906446596,19.33053197,135.07,134.98,16.1696]
[1718906446765,7.4051,135.05,134.98,16.1696]
[1718906446965,7.405,135.05,134.98,16.1696]
[1718906447187,18.5089,135.07,134.99,20.0]
[1718906447387,7.4058,135.03,134.99,20.0]
[1718906448269,7.4063,135.02,134.99,20.0]
[1718906449083,7.406,135.03,134.99,20.0]
[1718906449670,7.4053,135.04,134.99,20.0]
[1718906449968,7.4049,135.05,135.0,45.0]
[1718906450188,7.4049,135.05,135.01,20.0]
[1718906450491,7.4052,135.04,135.01,20.0]
[1718906450997,7.4048,135.05,135.01,20.0]
[1718906451493,8.22573197,135.07,135.01,20.0]
[1718906451688,0.82163197,135.08,135.01,20.0]
[1718906451995,7.4038,135.07,135.02,45.0]
[1718906452174,7.4038,135.07,135.03,20.0]
[1718906452376,7.4043,135.06,135.03,20.0]
[1718906452578,7.4047,135.05,135.03,20.0]
[1718906452795,7.4043,135.06,135.03,20.0]
[1718906452990,7.4043,135.06,135.0,0.17]
[1718906453189,7.4043,135.06,135.0,45.17]
[1718906453387,7.4047,135.05,135.01,20.0]
[1718906453685,18.5104,135.06,135.01,20.0]
[1718906453898,0.82163197,135.05,134.99,20.0]
[1718906454293,7.4065,135.02,134.99,20.0]
[1718906454703,0.82163197,135.05,134.94,16.5378]
[1718906454704,7.4069,135.01,134.94,16.5378]
[1718906455186,0.82163197,135.03,134.94,16.5378]
[1718906455798,7.4078,135.0,134.94,16.5378]
[1718906456092,7.4085,134.98,134.94,16.5378]
[1718906456481,7.408,134.99,134.94,16.5378]
[1718906457297,7.4075,135.0,134.94,16.5378]
[1718906457506,7.4075,135.0,134.95,20.0]
[1718906457999,7.4079,134.99,134.95,20.0]
[1718906459282,7.4076,135.0,134.95,20.0]
[1718906459480,0.82163197,135.01,134.95,20.0]
[1718906459702,0.82163197,135.04,134.96,45.0]
[1718906459915,7.4062,135.03,134.97,20.0]
[1718906460202,0.82163197,135.05,134.98,45.0]
[1718906460393,6.1629,135.09,135.0,15.9792]
[1718906460578,0.82163197,135.08,135.01,20.0]
[1718906460899,7.4046,135.05,135.01,20.0]
[1718906461096,0.82163197,135.08,135.01,20.0]
[1718906461298,0.82163197,135.08,135.0,15.9792]
[1718906461502,0.82163197,135.08,134.98,45.0]
[1718906461503,7.4065,135.02,134.98,45.0]
[1718906461678,7.4065,135.02,134.97,15.9792]
[1718906461884,7.4065,135.02,134.98,20.0]
[1718906462601,0.82163197,135.08,134.99,45.0]
[1718906462809,0.82163197,135.08,135.0,20.0]
[1718906462810,7.4042,135.06,135.0,20.0]
[1718906462979,0.82163197,135.09,135.02,15.9792]
[1718906463185,0.82163197,135.09,135.03,20.0]
[1718906463399,7.4046,135.06,135.03,20.0]
[1718906463597,19.32813197,135.09,135.04,1.4804852]
[1718906463791,7.4038,135.07,135.03,20.0]
[1718906464105,21.2969,135.14,135.03,20.0]
[1718906464306,0.82163197,135.13,135.04,45.51]
[1718906464496,0.82163197,135.13,135.05,20.0]
[1718906464811,0.82163197,135.13,135.06,45.0]
[1718906465888,0.82163197,135.13,135.05,20.0]
[1718906466088,0.82163197,135.13,135.04,0.17]
[1718906466290,0.82163197,135.13,135.04,45.17]
[1718906466489,0.82163197,135.13,135.05,20.0]
[1718906466695,0.82163197,135.13,135.06,45.0]
[1718906466885,21.2969,135.14,135.04,0.17]
[1718906467084,27.73,135.12,135.03,20.0]
[1718906467298,0.82163197,135.11,135.03,20.0]
[1718906471111,0.82163197,135.05,134.97,20.0]
[1718906472325,0.82163197,135.05,134.93,22.5623]
[1718906472619,0.82163197,135.05,134.94,20.0]
[1718906472986,0.82163197,135.05,134.93,22.5623]
[1718906473599,0.82163197,135.05,134.94,45.0]
[1718906474418,0.82163197,135.05,134.95,20.0]
[1718906476122,0.82163197,135.05,134.96,45.0]
[1718906476614,0.82163197,135.07,134.96,45.0]
[1718906478802,0.82163197,135.07,134.96,20.0]
[1718906480016,0.82163197,135.07,134.97,45.0]
[1718906480198,0.82163197,135.07,134.98,20.0]
[1718906480401,0.82163197,135.07,134.96,20.0]
[1718906481220,27.73,135.04,134.94,20.0]
[1718906481421,0.82163197,135.03,134.94,20.0]
[1718906481621,28.55163197,135.07,134.94,20.0]
[1718906482302,28.55163197,135.07,134.95,45.51]
[1718906482730,28.55163197,135.07,134.96,47.73]
[1718906482731,0.82163197,135.07,134.96,47.73]
[1718906482907,0.82163197,135.07,134.97,15.6881]
[1718906483105,0.82163197,135.07,134.98,65.0]
[1718906484914,21.7448,135.08,134.99,0.34]
[1718906485093,21.7448,135.08,134.99,0.51]
[1718906485297,0.82163197,135.07,134.98,65.0]
[1718906485498,0.82163197,135.07,134.98,20.0]
[1718906486933,49.4748,135.08,134.99,45.17]
[1718906487111,15.7196,135.08,135.0,20.17]
[1718906487319,6.4866,135.11,135.01,45.34]
[1718906487623,0.82163197,135.1,135.02,20.0]
[1718906487921,0.82163197,135.1,135.03,45.0]
[1718906488116,6.4866,135.11,135.04,20.0]
[1718906488378,15.869,135.12,135.05,45.34]
[1718906488511,15.869,135.12,135.06,20.0]
[1718906488705,15.869,135.12,135.07,45.0]
[1718906489815,0.82163197,135.13,135.07,45.0]
[1718906491212,0.82163197,135.13,135.08,20.0]
[1718906491527,6.85133197,135.14,135.08,20.0]
[1718906492318,27.73,135.13,135.08,20.0]
[1718906492517,0.82163197,135.12,135.04,20.0]
[1718906493012,28.55163197,135.13,135.04,20.0]
[1718906494519,27.73,135.1,135.04,20.0]
[1718906496809,0.82163197,135.13,135.05,45.17]
[1718906497008,0.82163197,135.13,135.06,20.0]
[1718906497914,27.73,135.14,135.06,20.0]
[1718906498114,27.73,135.14,135.07,45.0]
[1718906498423,27.73,135.14,135.08,20.0]
[1718906499530,16.8129353,135.16,135.08,20.0]
[1718906499709,0.82163197,135.15,135.08,20.0]
[1718906499911,27.73,135.14,135.08,20.0]
[1718906500129,0.82163197,135.13,135.08,20.0]
[1718906500321,28.55163197,135.14,135.08,20.0]
[1718906500519,27.73,135.14,135.06,20.0]
[1718906500721,27.73,135.14,135.07,45.17]
[1718906500926,27.73,135.14,135.08,20.0]
[1718906501127,0.82163197,135.15,135.08,20.0]
[1718906504637,27.73,135.14,135.08,20.0]
[1718906505114,28.55163197,135.14,135.08,20.0]
[1718906505335,28.55163197,135.14,135.04,20.0]
[1718906506033,27.73,135.14,135.04,20.0]
[1718906506235,16.8129353,135.16,135.04,20.0]
[1718906506440,44.5429353,135.16,135.05,45.51]
[1718906506639,44.5429353,135.16,135.06,20.0]
[1718906506844,44.5429353,135.16,135.07,45.51]
[1718906507017,44.5429353,135.16,135.08,20.0]
[1718906507222,28.5565353,135.16,135.09,0.17]
[1718906507422,28.5565353,135.16,135.09,60.8917]
[1718906507657,28.5565353,135.16,135.1,20.0]
[1718906511636,0.8265353,135.16,135.11,0.17]
[1718906511922,0.8265353,135.16,135.1,20.0]
[1718906513531,27.73,135.14,135.1,20.0]
[1718906513842,27.73,135.14,135.06,20.0]
[1718906514690,0.82163197,135.13,135.06,20.0]
[1718906514936,28.55163197,135.14,135.06,20.0]
[1718906515156,27.73,135.14,135.06,20.0]
[1718906517432,0.82163197,135.13,135.06,20.0]
[1718906520765,0.82163197,135.13,135.03,20.0]
[1718906521554,27.73,135.11,135.03,20.0]
[1718906521934,0.82163197,135.1,135.03,20.0]
[1718906522555,27.73,135.12,135.03,20.0]
[1718906522752,0.82163197,135.11,135.03,20.0]
[1718906524153,21.7647,135.1,135.03,20.0]
[1718906526353,15.1587,135.1,135.03,20.0]
[1718906526550,0.82163197,135.11,135.03,20.0]
[1718906527669,27.73,135.12,135.04,0.17]
[1718906527962,27.73,135.12,135.04,45.51]
[1718906528169,0.82163197,135.11,135.05,20.0]
[1718906528338,0.82163197,135.11,135.03,20.0]
[1718906528937,28.55163197,135.13,135.03,20.0]
[1718906529161,28.55163197,135.13,135.04,0.17]
[1718906530053,28.55163197,135.13,135.03,20.0]
[1718906530674,28.55163197,135.13,135.04,0.17]
[1718906530840,18.55163197,135.13,135.04,0.17]
[1718906531262,18.55163197,135.13,135.03,20.0]
[1718906532158,18.55163197,135.13,135.04,0.17]
[1718906532364,15.6805,135.14,135.03,20.0]
[1718906532554,28.5565353,135.16,135.04,0.17]
[1718906532749,28.5565353,135.16,135.05,22.473]
[1718906532947,28.5565353,135.16,135.06,65.51]
[1718906533149,28.5565353,135.16,135.06,20.51]
[1718906533548,9.22,135.12,135.06,29.73]
[1718906534252,0.8265353,135.16,135.07,54.22]
[1718906534453,9.22,135.13,135.08,29.73]
[1718906534747,0.8265353,135.16,135.08,29.73]
[1718906534748,0.8265353,135.16,135.1,9.22]
[1718906535075,9.22,135.14,135.11,20.17]
[1718906535274,9.22,135.14,135.11,20.0]
[1718906535476,0.8265353,135.16,135.1,20.17]
[1718906536141,0.8265353,135.16,135.11,22.813]
[1718906536471,0.8265353,135.16,135.12,65.17]
[1718906536677,0.8265353,135.16,135.13,0.34]
[1718906536843,0.8265353,135.16,135.14,0.17]
[1718906537251,0.8265353,135.16,135.12,65.0]
[1718906537252,0.8265353,135.16,135.12,20.0]
[1718906537466,0.8265353,135.16,135.12,19.41]
[1718906538039,7.1511353,135.16,135.07,15.3938]
[1718906538358,34.8111353,135.16,135.07,15.3938]
[1718906539952,7.1511353,135.16,135.07,15.3938]
[1718906540148,27.66,135.15,135.07,15.3938]
[1718906540373,27.66,135.15,135.08,20.0]
[1718906540577,7.1511353,135.16,135.08,20.0]
[1718906540914,27.66,135.15,135.08,20.0]
[1718906541380,27.66,135.15,135.05,20.0]
[1718906542366,27.66,135.15,135.06,0.17]
[1718906542871,27.66,135.15,135.05,20.0]
[1718906543452,7.1511353,135.16,135.05,20.0]
[1718906543643,27.66,135.15,135.06,0.17]
[1718906544753,27.66,135.15,135.06,0.51]
[1718906545073,27.66,135.15,135.06,0.34]
[1718906547455,27.66,135.15,135.05,20.0]
[1718906547678,16.1337,135.13,135.05,20.0]
[1718906551152,16.1337,135.13,135.05,20.0]
[1718906551748,16.1337,135.13,135.06,0.17]
[1718906552159,16.1337,135.13,135.05,20.0]
[1718906553459,27.66,135.15,135.06,0.17]
[1718906555462,45.0,135.14,135.05,20.0]
[1718906557085,16.4633,135.12,135.01,35.4974]
[1718906557272,45.0,135.11,135.01,35.4974]
[1718906558065,45.0,135.11,135.01,15.4974]
[1718906559484,16.4633,135.12,135.02,20.0]
[1718906559872,45.0,135.11,135.02,20.0]
[1718906560279,16.4633,135.12,135.02,20.0]
[1718906560857,54.86304263,135.16,135.04,21.6926]
[1718906560858,26.76854263,135.16,135.04,21.6926]
[1718906561068,23.5966353,135.16,135.05,20.51]
[1718906561380,23.5966353,135.16,135.05,20.0]
[1718906562375,23.5966353,135.16,135.06,0.17]
[1718906563686,23.5966353,135.16,135.05,20.0]
[1718906563873,45.0,135.15,135.05,20.0]
[1718906564665,23.5966353,135.16,135.05,20.0]
[1718906564895,45.0,135.15,135.05,20.0]
[1718906566573,0.8265353,135.16,135.05,20.0]
[1718906566777,0.8265353,135.16,135.06,0.51]
[1718906567292,0.8265353,135.16,135.06,0.34]
[1718906567471,0.8265353,135.16,135.05,20.17]
[1718906568769,0.8265353,135.16,135.05,20.0]
[1718906568770,21.3309,135.15,135.05,20.0]
[1718906568973,45.0,135.14,135.05,20.0]
[1718906569772,45.0,135.14,135.04,15.3849]
[1718906569973,46.59095826,135.14,135.04,15.3849]
[1718906570379,1.58094907,135.13,135.04,15.3849]
[1718906571090,1.58094907,135.13,135.05,20.0]
[1718906572780,46.59095826,135.14,135.05,20.0]
[1718906572986,1.59095826,135.14,135.05,20.0]
[1718906574372,21.3309,135.15,135.06,6.5469]
[1718906574576,1.00353338,135.16,135.07,20.0]
[1718906574795,0.8265353,135.16,135.07,20.0]
[1718906576885,7.4016,135.11,135.07,20.0]
[1718906577495,18.4981,135.15,135.07,20.0]
[1718906577692,19.3240353,135.16,135.07,20.0]
[1718906578005,18.4989,135.15,135.07,20.0]
[1718906578184,7.4011,135.12,135.07,20.0]
[1718906579179,0.8265353,135.16,135.08,16.0575]
[1718906579383,7.4003,135.13,135.09,20.0]
[1718906580187,7.3999,135.14,135.09,20.0]
[1718906580388,0.8265353,135.16,135.09,20.0]
[1718906580580,8.2252353,135.16,135.1,6.5151]
[1718906580793,8.2252353,135.16,135.11,20.0]
[1718906581098,8.2254353,135.16,135.11,20.0]
[1718906581287,7.3992,135.15,135.11,20.0]
[1718906581596,0.8265353,135.16,135.12,15.4599]
[1718906581805,0.8265353,135.16,135.13,20.0]
[1718906584174,0.8265353,135.16,135.14,6.6237]
[1718906584402,0.8265353,135.16,135.15,20.0]
[1718906588690,0.8265353,135.16,135.13,20.0]
[1718906590914,7.3997,135.14,135.12,15.4599]
[1718906591206,0.8265353,135.16,135.12,15.4599]
[1718906591408,8.2255353,135.16,135.12,15.4599]
[1718906591706,7.4001,135.14,135.12,15.4599]
[1718906591889,7.3994,135.15,135.12,15.4599]
[1718906592201,8.2251353,135.16,135.12,15.4599]
[1718906592388,0.8265353,135.16,135.13,20.0]
[1718906592908,0.8265353,135.16,135.05,22.5823]
[1718906593093,7.3999,135.14,135.06,20.34]
[1718906593289,0.8265353,135.16,135.06,27.7384]
[1718906593681,7.4005,135.13,135.06,27.7384]
[1718906594098,7.3998,135.14,135.07,0.17]
[1718906594290,7.4004,135.13,135.07,0.17]
[1718906594491,7.3998,135.14,135.07,0.17]
[1718906594811,7.3993,135.15,135.08,15.0577]
[1718906594995,7.3994,135.15,135.09,20.51]
[1718906595192,7.3998,135.14,135.09,20.0]
[1718906595388,7.4004,135.13,135.09,20.0]
[1718906595690,0.8265353,135.16,135.09,20.0]
[1718906595691,7.3998,135.14,135.09,20.0]
[1718906596211,0.8265353,135.16,135.09,20.0]
[1718906596592,0.8265353,135.16,135.1,6.7179]
[1718906596799,0.8265353,135.16,135.11,20.0]
[1718906596800,8.2254353,135.16,135.11,20.0]
[1718906597109,0.8265353,135.16,135.11,20.0]
[1718906598100,7.4,135.14,135.11,20.0]
[1718906598288,7.4008,135.12,135.11,20.0]
[1718906598489,0.8265353,135.16,135.11,36.4999]
[1718906599501,0.8265353,135.16,135.12,0.17]
[1718906599808,0.8265353,135.16,135.12,0.51]
[1718906600405,0.8265353,135.16,135.12,0.17]
[1718906600609,0.8265353,135.16,135.13,0.17]
[1718906600805,0.8265353,135.16,135.12,0.34]
[1718906601006,0.8265353,135.16,135.12,0.17]
[1718906601416,0.8265353,135.16,135.11,36.4999]
[1718906604109,0.8265353,135.16,135.12,22.9471]
[1718906604325,0.8265353,135.16,135.13,20.0]
[1718906604704,0.8265353,135.16,135.14,0.51]
[1718906606201,0.8723556,135.19,135.15,19.1736]
[1718906606521,0.8723556,135.19,135.16,20.51]
[1718906607101,0.8723556,135.19,135.16,20.34]
[1718906608320,0.8723556,135.19,135.17,0.17]
[1718906609125,0.8723556,135.19,135.16,20.34]
[1718906610122,0.8723556,135.19,135.17,0.17]
[1718906611200,0.8723556,135.19,135.15,19.1736]
[1718906613409,0.8723556,135.19,135.16,20.0]
[1718906614013,0.8723556,135.19,135.15,19.1736]
[1718906614805,0.8723556,135.19,135.15,13.1055]
[1718906615012,0.8723556,135.19,135.12,21.6046]
[1718906618910,0.8723556,135.19,135.13,20.0]
[1718906619535,7.4013,135.11,135.04,15.0813]
[1718906619808,7.4019,135.1,135.04,15.0813]
[1718906620015,7.4027,135.09,135.04,15.0813]
[1718906620208,18.5009,135.13,135.04,15.0813]
[1718906620413,7.4008,135.12,135.04,15.0813]
[1718906620630,7.3988,135.16,135.04,15.0813]
[1718906621005,7.3997,135.14,135.04,15.0813]
[1718906621232,7.3992,135.15,135.04,15.0813]
[1718906621415,7.3993,135.15,135.04,15.0813]
[1718906621614,34.4972,135.18,135.07,16.318]
[1718906621814,7.3992,135.15,135.08,0.51]
[1718906622014,7.3997,135.14,135.08,0.51]
[1718906622231,7.4003,135.13,135.08,0.17]
[1718906622438,7.4003,135.13,135.08,20.0]
[1718906622614,18.4965,135.17,135.08,20.0]
[1718906622932,7.3999,135.14,135.08,20.0]
[1718906623468,7.7359895,135.26,135.1,22.31]
[1718906623608,10.5714208,135.25,135.24,7.3942]
[1718906623931,10.5714208,135.25,135.24,27.3942]
[1718906624119,16.25060083,135.3,135.25,7.3936]